bitfinex/quotes_ETHUSD_20250524
["timestamp","ask_amount","ask_price","bid_price","bid_amount"]
[1748127065442,0.62997558,2529.9,2529.5,0.22095674]
[1748127065837,0.7878,2529.8,2529.5,0.22095674]
[1748127066017,0.7878,2529.8,2529.6,11.832]
[1748127066213,1.12862944,2529.8,2529.5,0.22095674]
[1748127066540,1.12862944,2529.8,2529.6,11.832]
[1748127066916,1.12862944,2529.8,2529.7,11.833]
[1748127067330,1.75860502,2529.8,2529.7,11.833]
[1748127068542,3.74912388,2529.8,2529.7,11.833]
[1748127069152,3.74912388,2529.8,2529.7,50.741]
[1748127070562,3.75702388,2529.8,2529.7,15.242]
[1748127070706,0.7957,2529.7,2529.2,0.39281896]
[1748127071052,0.7957,2529.7,2527.8,0.20591129]
[1748127071053,0.7957,2529.5,2528.2,0.7633]
[1748127071208,0.8309,2529.3,2528.2,0.7633]
[1748127071416,0.8309,2529.3,2528.3,0.22080225]
[1748127071616,0.8309,2529.3,2528.4,11.833]
[1748127072054,0.62997558,2529.2,2528.4,11.833]
[1748127072351,1.46087558,2529.2,2528.4,11.833]
[1748127073058,1.46087558,2529.2,2528.2,1.15025195]
[1748127073354,0.8309,2529.1,2528.3,11.835]
[1748127073727,0.62997558,2529.0,2528.3,11.835]
[1748127074251,0.62997558,2529.0,2528.2,1.15025195]
[1748127074549,0.8309,2528.9,2528.2,1.15025195]
[1748127074848,0.8309,2528.9,2528.3,11.835]
[1748127075054,0.6879217,2528.8,2528.3,11.835]
[1748127075843,0.6879217,2528.8,2528.2,1.15025195]
[1748127076049,0.6879217,2528.8,2528.4,11.836]
[1748127078957,6.04831703,2529.0,2528.5,0.7591]
[1748127079128,6.04831703,2529.0,2528.6,15.248]
[1748127079719,6.04831703,2529.0,2528.5,0.7591]
[1748127080243,0.8309,2528.9,2528.6,11.837]
[1748127080919,0.8309,2528.9,2528.7,11.837]
[1748127081220,0.6879217,2528.8,2528.7,11.837]
[1748127084845,0.6879217,2528.8,2528.7,11.838]
[1748127085071,0.8309,2528.9,2528.7,11.838]
[1748127085565,6.04831703,2529.0,2528.7,11.838]
[1748127089181,6.04831703,2529.0,2528.8,38.926]
[1748127089383,6.04831703,2529.2,2528.8,38.926]
[1748127089554,6.67829261,2529.2,2528.9,11.838]
[1748127089757,0.74969926,2529.1,2528.9,11.838]
[1748127092701,0.74969926,2529.1,2529.0,11.838]
[1748127093337,1.37967484,2529.1,2529.0,11.838]
[1748127096905,1.37967484,2529.1,2528.6,0.39495804]
[1748127096906,0.74969926,2529.1,2528.6,0.39495804]
[1748127097204,0.74969926,2529.1,2528.5,0.8289]
[1748127098019,0.74969926,2529.1,2528.6,11.839]
[1748127098824,0.62938918,2529.0,2528.6,11.839]
[1748127099033,0.62938918,2529.0,2528.5,0.8289]
[1748127099034,0.7797,2528.9,2528.3,0.8179]
[1748127099323,0.7797,2528.9,2528.7,11.839]
[1748127099523,1.37212973,2529.0,2528.7,11.839]
[1748127099830,0.62938918,2528.9,2528.7,11.839]
[1748127101130,0.62938918,2528.8,2528.7,11.839]
[1748127102127,0.7619,2528.7,2528.1,0.8427]
[1748127102287,0.7619,2528.7,2528.1,0.05]
[1748127102488,0.7619,2528.7,2528.2,11.839]
[1748127102697,0.7619,2528.7,2528.2,12.06032198]
[1748127103524,0.63075064,2528.4,2528.2,11.839]
[1748127104213,0.63075064,2528.4,2528.2,12.2378948]
[1748127104947,1.39265064,2528.4,2528.2,0.3988948]
[1748127105149,1.39265064,2528.4,2528.1,0.05]
[1748127105356,1.39265064,2528.4,2528.3,11.839]
[1748127105550,1.39265064,2528.4,2528.1,0.05]
[1748127105755,0.7619,2528.4,2528.3,11.839]
[1748127106453,0.55,2528.3,2528.1,0.05]
[1748127106616,0.55,2528.3,2528.2,11.839]
[1748127107430,0.55,2528.3,2528.1,0.05]
[1748127107659,0.55,2528.3,2528.2,11.839]
[1748127107858,1.48119,2528.3,2528.2,11.839]
[1748127108560,0.93119,2528.3,2528.2,11.839]
[1748127108860,0.7619,2528.4,2528.2,11.839]
[1748127109274,0.7619,2528.4,2528.3,15.221]
[1748127112085,0.7619,2528.4,2528.2,11.839]
[1748127112883,0.62910567,2528.3,2528.2,11.839]
[1748127113392,6.6774227,2528.3,2528.2,11.839]
[1748127113692,7.42135497,2528.3,2528.2,11.839]
[1748127115494,7.42135497,2528.3,2528.2,11.842]
[1748127115995,1.3003,2528.2,2528.1,0.05]
[1748127116161,1.3003,2528.2,2528.1,11.892]
[1748127116489,2.10955493,2528.2,2528.1,11.892]
[1748127118692,5.13726369,2528.2,2528.1,11.892]
[1748127119068,5.68726369,2528.2,2528.1,0.05]
[1748127119369,5.68726369,2528.2,2527.6,0.40136591]
[1748127119370,0.55,2528.1,2527.6,0.40136591]
[1748127119597,6.04831703,2528.0,2527.4,0.8138]
[1748127119789,0.6598317,2527.9,2527.4,0.8138]
[1748127120565,0.6598317,2527.9,2527.5,11.842]
[1748127121099,0.6598317,2527.9,2527.4,0.8138]
[1748127121304,0.6598317,2527.9,2527.5,11.842]
[1748127123101,0.7503,2527.8,2527.2,0.8138]
[1748127123310,0.74584487,2527.7,2527.0,0.8138]
[1748127123481,0.74584487,2527.7,2527.3,11.842]
[1748127123801,0.74584487,2527.7,2527.4,11.842]
[1748127124564,1.37442219,2527.7,2527.4,11.842]
[1748127125468,0.74584487,2527.7,2527.4,11.842]
[1748127125668,0.21247222,2527.6,2527.4,11.842]
[1748127125902,0.21247222,2527.6,2527.5,11.843]
[1748127126225,0.76247222,2527.6,2527.5,11.843]
[1748127126370,0.55,2527.5,2526.8,0.8207]
[1748127126573,0.55,2527.5,2527.2,11.844]
[1748127126776,1.3311,2527.3,2527.2,11.844]
[1748127129142,8.7811,2527.2,2526.8,6.632]
[1748127129320,8.0,2527.2,2527.1,17.105]
[1748127129494,8.7811,2527.2,2527.1,27.094]
[1748127132414,8.7811,2527.2,2527.1,0.05]
[1748127132723,10.60571831,2527.2,2527.1,11.895]
[1748127132951,17.20403534,2527.2,2527.1,0.05]
[1748127133156,17.20403534,2527.2,2527.1,11.896]
[1748127133355,17.20403534,2527.2,2527.1,0.05]
[1748127133557,17.20403534,2527.2,2527.1,11.896]
[1748127133714,17.20403534,2527.2,2527.1,0.05]
[1748127133915,17.20403534,2527.2,2527.1,11.896]
[1748127134159,17.20403534,2527.2,2527.1,0.05]
[1748127134352,17.20403534,2527.2,2527.1,11.896]
[1748127134946,17.20403534,2527.2,2527.1,0.05]
[1748127135148,17.20403534,2527.2,2527.1,11.896]
[1748127135738,16.42293534,2527.2,2526.0,0.8048]
[1748127135938,0.55,2526.8,2526.2,11.847]
[1748127137469,1.17675663,2526.8,2526.0,0.8048]
[1748127137670,0.55,2526.6,2526.2,11.847]
[1748127137833,0.55,2526.6,2525.8,1.14383562]
[1748127138038,0.55,2526.4,2526.2,11.847]
[1748127138374,6.70814873,2526.5,2526.2,11.847]
[1748127139250,6.70814873,2526.5,2526.3,38.902]
[1748127139588,1.3696,2526.4,2526.3,23.697]
[1748127139732,1.3696,2526.4,2526.3,50.751]
[1748127139934,2.17737487,2526.4,2526.3,50.751]
[1748127140637,2.17737487,2526.4,2526.1,0.05]
[1748127141777,2.17737487,2526.4,2526.2,11.85]
[1748127142075,2.17737487,2526.4,2526.1,0.05]
[1748127142278,2.17737487,2526.4,2526.3,11.85]
[1748127143161,8.2256919,2526.4,2526.1,0.05]
[1748127143367,1.37256919,2526.3,2526.2,11.85]
[1748127143877,0.55,2526.2,2526.1,0.05]
[1748127144081,0.55,2526.2,2526.1,11.9]
[1748127147245,6.04831703,2526.4,2526.1,11.9]
[1748127148011,1.3696,2526.3,2526.1,0.05]
[1748127148193,1.3696,2526.3,2526.2,11.851]
[1748127148991,1.3696,2526.3,2526.1,0.05]
[1748127149191,1.3696,2526.3,2526.2,44.125]
[1748127149405,1.3696,2526.3,2526.2,27.059]
[1748127149569,2.4359864,2526.3,2526.2,11.851]
[1748127150710,2.4359864,2526.3,2526.2,11.852]
[1748127151198,2.4359864,2526.3,2526.1,0.05]
[1748127152285,3.06274303,2526.3,2526.1,0.05]
[1748127152487,0.62675663,2526.3,2526.2,11.852]
[1748127153298,6.12,2526.5,2526.2,11.852]
[1748127154417,0.62675663,2526.6,2526.2,11.852]
[1748127154607,0.62675663,2526.6,2526.3,0.7657]
[1748127155377,0.62675663,2526.7,2526.3,0.7657]
[1748127158429,0.62675663,2526.6,2526.3,0.7657]
[1748127159229,0.62675663,2526.6,2526.4,38.886]
[1748127160635,0.62675663,2526.6,2526.4,15.183]
[1748127160789,0.62675663,2526.6,2526.3,0.7657]
[1748127162324,0.62675663,2526.6,2526.4,11.851]
[1748127163101,0.62675663,2526.5,2526.4,11.851]
[1748127165237,0.62675663,2526.5,2526.3,0.7657]
[1748127165421,0.62675663,2526.5,2526.4,11.851]
[1748127169145,0.62675663,2526.5,2526.4,33.669]
[1748127169721,0.62675663,2526.5,2526.4,11.851]
[1748127172710,0.62675663,2526.5,2526.4,12.6149]
[1748127173650,0.62675663,2526.6,2526.4,12.6149]
[1748127179232,0.62675663,2526.6,2526.5,16.01]
[1748127179530,0.62675663,2526.6,2526.5,8.828]
[1748127179745,1.99051886,2526.8,2526.5,20.678]
[1748127180749,1.99051886,2526.8,2526.6,0.2216239]
[1748127181150,1.99051886,2526.8,2526.7,0.36936969]
[1748127182075,0.62675663,2526.9,2526.7,0.36936969]
[1748127182366,0.88848418,2526.9,2526.7,0.36936969]
[1748127182571,0.88848418,2526.9,2526.5,20.678]
[1748127182876,0.88848418,2526.9,2526.6,0.36958541]
[1748127183250,0.88848418,2526.9,2526.7,0.36958541]
[1748127183890,0.88848418,2526.9,2526.2,0.7567]
[1748127183891,1.43848418,2526.9,2526.8,11.849]
[1748127185094,0.55,2526.8,2526.2,0.7567]
[1748127185240,0.97634842,2526.7,2526.3,11.849]
[1748127185655,0.97634842,2526.7,2526.4,11.849]
[1748127187262,3.57852231,2526.6,2526.4,11.849]
[1748127187467,4.08900938,2526.6,2526.4,11.849]
[1748127188459,4.08900938,2526.6,2526.1,0.05]
[1748127188659,4.08900938,2526.6,2526.2,11.85]
[1748127188860,4.08900938,2526.6,2526.1,0.05]
[1748127188861,0.55,2526.5,2526.1,0.05]
[1748127189164,0.63044669,2526.3,2526.2,27.008]
[1748127189475,0.63044669,2526.3,2526.1,0.05]
[1748127189676,4.702,2526.2,2526.1,0.05]
[1748127189891,4.702,2526.2,2526.1,11.9]
[1748127190100,5.5237,2526.2,2526.1,0.05]
[1748127190302,14.62285961,2526.2,2526.1,11.9]
[1748127190647,15.0147051,2526.2,2526.1,11.9]
[1748127191081,16.60270855,2526.2,2526.1,11.9]
[1748127191258,17.85114947,2526.2,2526.1,11.9]
[1748127191687,17.85114947,2526.2,2526.1,0.05]
[1748127191982,17.85114947,2526.2,2526.1,11.9]
[1748127192801,17.85114947,2526.2,2526.1,0.05]
[1748127193097,17.85114947,2526.2,2526.1,11.902]
[1748127194369,17.85114947,2526.2,2524.9,0.7968]
[1748127194370,17.02944947,2526.2,2524.9,0.7968]
[1748127194700,0.55,2526.0,2524.9,0.7968]
[1748127195085,0.55,2525.8,2524.9,0.7968]
[1748127195287,0.55,2525.8,2525.2,0.7968]
[1748127195626,6.12,2525.9,2525.3,11.852]
[1748127195923,0.62779597,2525.9,2525.4,0.7968]
[1748127196127,0.62779597,2525.9,2525.4,2.06168]
[1748127196579,0.62779597,2525.9,2525.4,1.26488]
[1748127196892,0.62779597,2526.1,2525.5,0.7968]
[1748127197885,2.61614443,2526.2,2525.5,0.7968]
[1748127199195,2.61614443,2526.2,2525.6,21.8]
[1748127199434,2.61614443,2526.2,2525.5,0.7968]
[1748127199580,2.61614443,2526.2,2525.5,1.47954042]
[1748127199986,0.62779597,2526.2,2525.5,1.47954042]
[1748127201745,6.74779597,2526.2,2525.5,1.47954042]
[1748127203380,6.74779597,2526.2,2525.6,0.7519]
[1748127204325,6.12,2526.2,2525.6,0.7519]
[1748127204513,6.12,2526.2,2525.6,1.69536404]
[1748127205229,8.10834846,2526.3,2525.6,0.7519]
[1748127205435,0.7955,2526.2,2525.7,11.853]
[1748127207933,0.7955,2526.2,2525.6,0.7519]
[1748127208163,0.7955,2526.2,2525.8,11.853]
[1748127208959,1.42329597,2526.2,2525.8,11.853]
[1748127209258,1.1695296,2526.1,2525.9,38.868]
[1748127210284,1.1695296,2526.1,2525.9,15.163]
[1748127210938,1.1695296,2526.1,2525.8,11.853]
[1748127213037,1.1695296,2526.1,2525.6,0.7519]
[1748127213238,1.1695296,2526.1,2525.7,11.853]
[1748127214572,1.79732557,2526.1,2525.7,11.853]
[1748127216574,0.62779597,2526.0,2525.7,11.853]
[1748127217377,0.62779597,2526.0,2525.8,0.757]
[1748127217755,0.62779597,2526.3,2525.9,0.36916094]
[1748127218092,0.62779597,2526.3,2525.8,0.757]
[1748127219075,0.62779597,2526.3,2525.9,0.36912738]
[1748127219277,0.62779597,2526.3,2525.9,39.23712738]
[1748127219486,0.62779597,2526.3,2525.9,15.163]
[1748127221687,0.62779597,2526.3,2525.8,0.757]
[1748127221856,0.62779597,2526.3,2525.8,1.44413042]
[1748127222055,0.62779597,2526.3,2525.9,0.757]
[1748127222267,0.62779597,2526.3,2526.0,0.757]
[1748127222575,0.62779597,2526.3,2526.1,0.36913582]
[1748127222785,0.62779597,2526.3,2526.2,0.757]
[1748127223158,0.62779597,2526.3,2526.2,1.12613582]
[1748127223979,0.62779597,2526.3,2526.2,1.3472041]
[1748127224394,1.98834846,2526.4,2526.2,1.3472041]
[1748127224395,1.98834846,2526.4,2526.3,0.757]
[1748127224889,1.98834846,2526.4,2526.3,1.12613582]
[1748127225094,1.98834846,2526.4,2526.3,1.3472041]
[1748127225499,6.9459,2527.1,2526.3,1.3472041]
[1748127225716,1.91842485,2527.0,2526.3,1.3472041]
[1748127225866,1.91842485,2527.0,2526.4,0.5902041]
[1748127226195,1.91842485,2527.0,2526.5,11.851]
[1748127227177,1.91842485,2527.0,2526.6,0.8009]
[1748127228398,1.91842485,2527.0,2526.5,11.851]
[1748127228574,0.80384249,2526.9,2526.5,11.851]
[1748127229222,0.80384249,2526.9,2526.6,38.839]
[1748127229595,0.80384249,2526.9,2526.6,15.138]
[1748127229981,0.80384249,2526.9,2526.4,0.8009]
[1748127230182,0.80384249,2526.9,2526.5,11.85]
[1748127230404,0.27222673,2526.8,2526.4,0.8009]
[1748127230578,0.27222673,2526.8,2526.6,11.85]
[1748127230917,0.7559,2526.9,2526.6,11.85]
[1748127232892,0.7559,2526.9,2526.2,0.8009]
[1748127233118,0.7559,2526.9,2526.3,11.85]
[1748127233297,0.7559,2526.9,2526.2,0.8009]
[1748127233499,0.7559,2526.9,2525.7,0.39506318]
[1748127233710,0.7559,2526.9,2525.9,0.7565]
[1748127233711,0.55,2526.8,2525.9,0.7565]
[1748127233910,0.55,2526.8,2526.0,0.36828544]
[1748127234116,0.55,2526.8,2526.1,0.36828544]
[1748127234912,0.55,2526.8,2526.0,0.36828544]
[1748127235118,0.55,2526.8,2526.1,11.85]
[1748127235320,0.55,2526.8,2526.2,11.85]
[1748127236918,0.54579,2526.7,2526.2,11.85]
[1748127239119,0.55,2526.8,2526.3,24.53]
[1748127239316,0.55,2526.8,2526.3,39.667]
[1748127239618,0.55,2526.8,2526.3,15.137]
[1748127239805,0.55,2526.8,2526.2,11.85]
[1748127240640,0.55,2526.8,2526.1,0.83]
[1748127240833,1.35709,2526.7,2526.2,11.85]
[1748127241789,1.35709,2526.7,2526.3,11.85]
[1748127242303,1.35709,2526.7,2526.4,11.85]
[1748127242531,1.35709,2526.7,2525.9,0.83]
[1748127242733,1.35709,2526.7,2526.0,11.85]
[1748127243004,0.605909,2526.6,2525.9,0.83]
[1748127243207,0.605909,2526.6,2526.0,12.21874125]
[1748127243445,0.605909,2526.6,2526.1,11.85]
[1748127243643,4.757909,2526.6,2526.1,11.85]
[1748127245342,4.757909,2526.6,2526.2,11.85]
[1748127245677,0.81033475,2526.5,2526.2,11.85]
[1748127246548,0.81033475,2526.5,2526.3,11.85]
[1748127247336,4.757909,2526.6,2526.3,11.85]
[1748127247714,0.605909,2526.6,2526.3,11.85]
[1748127249033,0.605909,2526.6,2525.9,0.83]
[1748127249237,0.605909,2526.6,2526.4,11.851]
[1748127249647,0.605909,2526.6,2526.5,11.851]
[1748127249913,0.605909,2526.6,2525.9,0.83]
[1748127250330,0.75575575,2526.5,2526.0,12.22029108]
[1748127250952,6.95164846,2526.7,2526.2,0.83]
[1748127250953,6.14034846,2526.7,2526.2,0.83]
[1748127251348,3.57668024,2526.6,2526.2,0.83]
[1748127253255,6.14034846,2526.7,2526.0,12.6841]
[1748127253823,6.14034846,2526.7,2526.1,0.369496]
[1748127254250,6.14034846,2526.7,2526.0,12.6841]
[1748127254555,0.66903485,2526.6,2526.0,12.6841]
[1748127255160,0.66903485,2526.6,2526.1,0.59127574]
[1748127255460,0.66903485,2526.6,2526.1,0.22172694]
[1748127255757,5.59583485,2526.6,2526.1,0.22172694]
[1748127256255,7.58418331,2526.6,2526.1,0.22172694]
[1748127256460,7.58418331,2526.6,2526.0,12.6841]
[1748127256763,7.58418331,2526.6,2526.1,0.36962196]
[1748127257130,0.75841833,2526.5,2526.1,0.36962196]
[1748127257331,0.75841833,2526.5,2526.2,0.36962196]
[1748127257664,0.75841833,2526.5,2526.1,0.36962196]
[1748127258178,0.75841833,2526.5,2526.2,0.36962196]
[1748127258532,0.75841833,2526.5,2526.1,0.36962196]
[1748127258959,0.75841833,2526.5,2526.2,0.36962196]
[1748127259160,0.75841833,2526.5,2526.3,38.816]
[1748127259562,0.75841833,2526.5,2526.3,15.115]
[1748127260763,0.75841833,2526.5,2526.0,12.6841]
[1748127260965,2.76314846,2526.6,2526.0,12.6841]
[1748127261259,1.98834846,2526.6,2526.0,12.6841]
[1748127261447,1.98834846,2526.6,2526.1,0.5918813]
[1748127261837,1.98834846,2526.6,2526.3,0.7816]
[1748127262036,1.98834846,2526.6,2526.4,0.36990336]
[1748127262230,1.98834846,2526.5,2526.4,0.36990336]
[1748127263343,1.98834846,2526.5,2526.4,0.59185043]
[1748127264700,1.98834846,2526.5,2526.4,0.22194707]
[1748127264899,1.98834846,2526.5,2526.4,0.59176495]
[1748127265101,2.97208331,2526.5,2526.4,12.44176495]
[1748127265265,2.97208331,2526.5,2526.4,12.07194707]
[1748127265459,2.97208331,2526.5,2526.4,11.85]
[1748127265954,0.98373485,2526.5,2526.4,11.85]
[1748127266793,0.7849,2526.5,2526.4,11.85]
[1748127268399,4.36310193,2526.5,2526.4,11.85]
[1748127268984,4.36310193,2526.5,2525.8,0.7816]
[1748127269203,4.36310193,2526.5,2525.9,15.115]
[1748127269571,4.36310193,2526.5,2526.0,0.59180457]
[1748127269976,3.57820193,2526.5,2526.1,1.15147806]
[1748127270175,3.57820193,2526.5,2526.1,13.22340457]
[1748127270576,3.57820193,2526.5,2526.2,0.36987806]
[1748127271102,3.57820193,2526.5,2526.3,0.36987806]
[1748127271603,3.57820193,2526.5,2526.2,0.7921]
[1748127271764,3.57820193,2526.5,2526.4,1.01400629]
[1748127272604,3.57820193,2526.5,2526.4,1.38376934]
[1748127274401,3.57820193,2526.8,2526.4,1.38376934]
[1748127274781,3.57820193,2526.8,2526.5,0.36976305]
[1748127275191,3.57820193,2526.8,2526.6,0.36976305]
[1748127275595,3.57820193,2526.8,2526.4,0.7921]
[1748127276100,3.57820193,2526.8,2526.5,0.36965078]
[1748127276403,3.57820193,2526.8,2526.5,0.59144029]
[1748127276610,3.57820193,2526.8,2526.5,0.22178951]
[1748127276905,3.57820193,2526.8,2526.4,0.7921]
[1748127277701,3.57820193,2526.8,2526.5,0.36957769]
[1748127278172,3.57820193,2526.8,2526.4,0.7921]
[1748127278372,3.57820193,2526.8,2526.5,0.22173194]
[1748127279276,3.57820193,2526.8,2526.6,38.814]
[1748127281390,3.57820193,2526.8,2526.4,0.7921]
[1748127281717,3.57820193,2526.8,2526.5,0.36950864]
[1748127281873,3.57820193,2526.8,2526.4,0.7921]
[1748127282805,3.57820193,2526.8,2526.5,0.59118014]
[1748127283315,3.57820193,2526.8,2526.6,0.36948809]
[1748127283901,3.57820193,2526.8,2526.4,0.7921]
[1748127284401,8.10834846,2526.9,2526.5,0.3694632]
[1748127284603,0.88622485,2526.8,2526.5,0.3694632]
[1748127284790,8.10834846,2526.9,2526.5,0.3694632]
[1748127284992,8.10834846,2526.9,2526.6,0.3694632]
[1748127285723,8.10834846,2526.9,2526.5,0.3694632]
[1748127286418,8.10834846,2526.9,2526.6,0.3694632]
[1748127286883,8.10834846,2526.9,2526.5,0.3694632]
[1748127287289,8.10834846,2526.9,2526.6,0.3694632]
[1748127287526,8.91918331,2526.9,2526.7,11.849]
[1748127289124,8.91918331,2526.9,2526.8,23.698]
[1748127289289,8.91918331,2526.9,2526.8,38.786]
[1748127289589,8.10834846,2526.9,2526.8,38.786]
[1748127291928,8.10834846,2526.9,2526.8,15.088]
[1748127292430,9.69701945,2526.9,2526.8,15.088]
[1748127293819,9.69701945,2526.9,2526.7,11.849]
[1748127295632,9.69701945,2526.9,2526.4,0.7921]
[1748127295835,0.55,2526.6,2525.4,0.7904]
[1748127296034,1.3299,2526.6,2526.5,0.36955371]
[1748127296213,1.3299,2526.6,2526.5,12.21855371]
[1748127296603,1.3299,2526.6,2526.5,11.849]
[1748127296911,1.9756602,2526.6,2526.5,11.849]
[1748127297311,3.56433119,2526.6,2526.5,11.849]
[1748127297838,3.56433119,2526.6,2525.7,0.7904]
[1748127298200,3.56433119,2526.6,2525.8,0.22176951]
[1748127298900,3.56433119,2526.6,2525.9,11.849]
[1748127299106,0.35643312,2526.5,2526.0,15.089]
[1748127301042,0.35643312,2526.5,2525.9,11.849]
[1748127301542,0.35643312,2526.5,2526.0,0.22178025]
[1748127302040,2.3485878,2526.5,2526.0,0.22178025]
[1748127302443,2.3485878,2526.5,2525.9,11.849]
[1748127303319,0.7863,2526.3,2525.5,0.7529]
[1748127303526,0.55,2526.0,2525.1,0.8029]
[1748127303732,0.7863,2525.9,2525.2,11.85]
[1748127304029,0.55,2525.7,2525.2,11.85]
[1748127304225,1.13988016,2525.7,2525.2,11.85]
[1748127304622,0.7863,2525.6,2525.3,11.85]
[1748127305048,0.55,2525.5,2525.1,0.05]
[1748127305248,0.812,2525.4,2525.2,11.85]
[1748127309177,0.812,2525.4,2525.3,38.796]
[1748127310480,6.12,2525.5,2525.2,11.85]
[1748127313772,0.812,2525.7,2525.2,11.85]
[1748127315151,1.21650165,2525.9,2525.2,11.85]
[1748127315483,7.09665017,2525.8,2525.2,11.85]
[1748127315697,6.12,2525.8,2525.3,0.7901]
[1748127317950,0.7799,2525.8,2525.4,11.854]
[1748127318741,0.7799,2525.8,2525.5,11.854]
[1748127319143,0.7799,2525.8,2525.6,38.779]
[1748127319382,6.12,2525.9,2525.6,38.779]
[1748127319383,6.12,2525.9,2525.6,15.071]
[1748127319553,1.99215468,2526.3,2525.6,15.071]
[1748127319755,1.99215468,2526.3,2525.8,0.8058]
[1748127320279,0.7799,2526.4,2525.8,0.8058]
[1748127320280,2.77205468,2526.4,2525.8,0.8058]
[1748127321586,2.77205468,2526.4,2525.9,11.854]
[1748127321884,0.27720547,2526.3,2525.9,11.854]
[1748127322978,0.7799,2526.4,2525.9,11.854]
[1748127323858,0.55,2526.3,2525.6,0.7602]
[1748127324064,0.8192,2526.2,2525.7,11.854]
[1748127324987,0.8192,2526.2,2525.8,11.853]
[1748127328705,0.7867,2526.4,2525.8,12.6069]
[1748127328905,1.99215468,2526.5,2525.9,1.26069]
[1748127329114,1.99215468,2526.5,2525.8,12.6069]
[1748127329403,1.99215468,2526.5,2526.0,38.777]
[1748127329706,1.99215468,2526.5,2526.1,0.7539]
[1748127329915,6.12,2526.4,2526.1,0.7539]
[1748127332607,8.11215468,2526.5,2526.1,0.7539]
[1748127332786,6.12,2526.5,2526.1,0.7539]
[1748127333706,6.12,2526.5,2526.3,0.7761]
[1748127333908,6.12,2526.7,2526.4,0.7761]
[1748127336636,16.37,2527.0,2526.5,11.851]
[1748127339023,0.7872,2526.9,2526.4,0.7761]
[1748127339323,0.7872,2526.9,2526.5,50.617]
[1748127339755,0.7872,2526.9,2526.5,11.85]
[1748127339967,2.12528324,2526.9,2526.5,11.85]
[1748127340261,2.12528324,2526.9,2525.3,0.7761]
[1748127340465,2.12528324,2526.9,2525.4,11.85]
[1748127340466,7.4572,2526.8,2525.4,11.85]
[1748127340768,7.4572,2526.8,2525.5,0.7761]
[1748127341055,7.4572,2526.8,2525.6,0.99692458]
[1748127341258,0.87952832,2526.7,2525.7,0.89969246]
[1748127341763,7.4572,2526.6,2525.6,0.7761]
[1748127342528,7.4572,2526.6,2525.7,11.85]
[1748127344634,6.12,2526.5,2525.8,11.85]
[1748127346277,17.7072,2526.6,2525.8,11.85]
[1748127349177,17.7072,2526.6,2525.9,38.748]
[1748127349352,1.85867283,2526.5,2525.9,15.047]
[1748127351238,1.85867283,2526.5,2525.8,11.85]
[1748127351687,6.12,2526.4,2525.8,11.85]
[1748127352463,7.97867283,2526.5,2525.9,0.7597]
[1748127352654,7.97867283,2526.5,2525.9,0.79928562]
[1748127353286,7.97867283,2526.5,2525.9,0.7597]
[1748127353781,7.97867283,2526.5,2525.9,0.79928438]
[1748127354286,7.97867283,2526.5,2525.9,0.7597]
[1748127355172,1.91108624,2526.4,2525.9,0.7597]
[1748127357291,4.158,2526.3,2525.9,0.7597]
[1748127357577,1.91108624,2526.4,2525.9,0.7597]
[1748127357741,6.12,2526.3,2525.9,0.7597]
[1748127359197,6.12,2526.3,2526.0,38.748]
[1748127359355,6.12,2526.3,2526.0,15.047]
[1748127359798,6.12,2526.5,2526.0,15.047]
[1748127359997,7.36667283,2526.5,2526.0,15.047]
[1748127360599,6.12,2526.5,2525.9,0.7597]
[1748127361164,6.12,2526.5,2526.0,0.22151093]
[1748127362504,6.12,2526.5,2525.9,0.7597]
[1748127363870,6.12,2526.5,2526.0,0.2215386]
[1748127364714,6.12,2526.5,2525.9,0.7597]
[1748127365005,6.12,2526.5,2525.9,2.02067]
[1748127365566,0.8105,2526.4,2526.0,11.851]
[1748127366611,0.8105,2526.4,2525.6,0.7795]
[1748127367130,0.8105,2526.4,2525.3,0.8197]
[1748127367276,0.7959,2526.2,2525.7,0.22185135]
[1748127368077,0.7959,2526.2,2525.4,11.851]
[1748127368276,2.56749,2526.2,2525.4,11.851]
[1748127368685,2.56749,2526.2,2525.5,0.22187221]
[1748127368886,4.55964468,2526.2,2525.5,0.22187221]
[1748127369086,4.55964468,2526.2,2525.6,23.701]
[1748127369288,4.55964468,2526.2,2525.6,15.047]
[1748127369631,4.55964468,2526.2,2525.7,0.22187221]
[1748127370531,4.55964468,2526.2,2525.5,0.22187221]
[1748127370734,0.7959,2526.0,2525.5,0.22187221]
[1748127371028,0.7959,2526.0,2525.6,11.851]
[1748127371029,8.7959,2526.0,2525.6,11.851]
[1748127373337,1.58878444,2525.9,2525.6,11.851]
[1748127373536,8.0,2525.8,2525.6,11.851]
[1748127373749,14.12,2525.7,2525.6,11.851]
[1748127378617,6.12,2525.6,2525.1,3.8697]
[1748127379237,6.12,2525.6,2525.2,38.738]
[1748127379433,6.12,2525.6,2525.2,38.95942005]
[1748127379638,6.12,2525.6,2525.2,15.25242005]
[1748127379834,6.12,2525.6,2525.3,11.853]
[1748127380305,6.12,2525.5,2525.4,11.853]
[1748127381157,6.12,2525.5,2525.1,3.8697]
[1748127381354,6.12,2525.5,2525.4,11.853]
[1748127383345,6.12,2525.5,2525.1,3.8697]
[1748127383346,17.06443,2525.5,2525.1,3.05]
[1748127383564,17.06443,2525.5,2525.4,11.853]
[1748127385144,16.37,2525.5,2525.4,11.853]
[1748127385549,16.37,2525.5,2525.4,12.6519]
[1748127389289,16.37,2525.5,2525.4,27.6839]
[1748127391295,16.37,2525.5,2525.4,12.6519]